[Event "*** Titled Tuesday Blitz"]
[Site "Chess.com"]
[Date "2020.05.05"]
[Round "9"]
[White "Love_craft"]
[Black "pollo2016"]
[Result "1-0"]
[WhiteElo "2486"]
[BlackElo "2564"]
[TimeControl "180+1"]
[EndTime "11:48:59 PDT"]
[Termination "Love_craft won by resignation"]

1. d4 {[%clk 0:03:00.9]} 1... Nf6 {[%clk 0:02:59.3]} 2. c4 {[%clk 0:03:00.6]}
2... c5 {[%clk 0:02:59.3]} 3. d5 {[%clk 0:03:00.8]} 3... g6 {[%clk 0:02:59.5]}
4. Nc3 {[%clk 0:03:00.8]} 4... Bg7 {[%clk 0:02:59.4]} 5. Nf3 {[%clk 0:03:01.4]}
5... O-O {[%clk 0:02:59.3]} 6. Bf4 {[%clk 0:03:02]} 6... d6 {[%clk 0:02:58.4]}
7. h3 {[%clk 0:03:02.1]} 7... a6 {[%clk 0:02:54.2]} 8. a4 {[%clk 0:02:55.1]}
8... Nbd7 {[%clk 0:02:49.2]} 9. e3 {[%clk 0:02:54.2]} 9... Ne8 {[%clk
0:02:39.7]} 10. Bd3 {[%clk 0:02:42.7]} 10... Nc7 {[%clk 0:02:37.9]} 11. h4
{[%clk 0:02:34.8]} 11... h5 {[%clk 0:02:32.6]} 12. Qd2 {[%clk 0:02:10.6]} 12...
Nf6 {[%clk 0:02:23.3]} 13. a5 {[%clk 0:01:54.5]} 13... e5 {[%clk 0:02:20.2]} 14.
Bg5 {[%clk 0:01:48]} 14... Qe8 {[%clk 0:02:13.9]} 15. e4 {[%clk 0:01:43.2]}
15... Nh7 {[%clk 0:02:10.2]} 16. Be3 {[%clk 0:01:08.8]} 16... f5 {[%clk
0:02:07.4]} 17. Qc2 {[%clk 0:01:00.8]} 17... Rb8 {[%clk 0:01:58.5]} 18. Na4
{[%clk 0:00:56.6]} 18... fxe4 {[%clk 0:01:38.3]} 19. Bxe4 {[%clk 0:00:55.9]}
19... Bf5 {[%clk 0:01:38.9]} 20. Nb6 {[%clk 0:00:51.1]} 20... Bxe4 {[%clk
0:01:30.5]} 21. Qxe4 {[%clk 0:00:50.4]} 21... Nf6 {[%clk 0:01:31.2]} 22. Qc2
{[%clk 0:00:46.8]} 22... e4 {[%clk 0:01:29.2]} 23. Ng5 {[%clk 0:00:43.8]} 23...
Qe5 {[%clk 0:01:29.3]} 24. O-O-O {[%clk 0:00:20]} 24... Rbe8 {[%clk 0:01:24.2]}
25. Bd2 {[%clk 0:00:17]} 25... Ng4 {[%clk 0:01:14.2]} 26. Bc3 {[%clk 0:00:15.4]}
26... Qf4+ {[%clk 0:01:13.6]} 27. Kb1 {[%clk 0:00:13.4]} 27... Qxf2 {[%clk
0:01:07.7]} 28. Rd2 {[%clk 0:00:13.4]} 28... Qg3 {[%clk 0:01:03.2]} 29. Bxg7
{[%clk 0:00:13.2]} 29... Kxg7 {[%clk 0:01:02.8]} 30. Nxe4 {[%clk 0:00:12.2]}
30... Qf4 {[%clk 0:00:55.4]} 31. Qc3+ {[%clk 0:00:11.8]} 31... Ne5 {[%clk
0:00:53]} 32. Ng5 {[%clk 0:00:10.8]} 32... Rf5 {[%clk 0:00:42]} 33. Re2 {[%clk
0:00:10.2]} 33... Qg4 {[%clk 0:00:41.2]} 34. Rhe1 {[%clk 0:00:10.3]} 34... Ref8
{[%clk 0:00:39.2]} 35. Rxe5 {[%clk 0:00:08.2]} 35... dxe5 {[%clk 0:00:34.2]} 36.
Rxe5 {[%clk 0:00:08.7]} 36... Rxe5 {[%clk 0:00:17.8]} 37. Qxe5+ {[%clk
0:00:08.8]} 37... Kh6 {[%clk 0:00:17.2]} 38. Qxc7 {[%clk 0:00:08.6]} 38... Qxh4
{[%clk 0:00:17.1]} 39. Qh7+ {[%clk 0:00:04.2]} 39... Kxg5 {[%clk 0:00:16.9]} 40.
Qe7+ {[%clk 0:00:04.5]} 40... Kg4 {[%clk 0:00:17.2]} 41. Qxf8 {[%clk 0:00:04.4]}
41... Qh1+ {[%clk 0:00:17.9]} 42. Ka2 {[%clk 0:00:04.2]} 42... Qxg2 {[%clk
0:00:18.8]} 43. Qc8+ {[%clk 0:00:04.4]} 43... Kg5 {[%clk 0:00:18.1]} 44. Qd8+
{[%clk 0:00:03.7]} 44... Kh6 {[%clk 0:00:17.8]} 45. Qh8+ {[%clk 0:00:03.4]}
45... Kg5 {[%clk 0:00:18]} 46. Qd8+ {[%clk 0:00:03.3]} 46... Kh6 {[%clk
0:00:18.2]} 47. d6 {[%clk 0:00:03.9]} 47... h4 {[%clk 0:00:17.9]} 48. Qh8+
{[%clk 0:00:03.8]} 48... Kg5 {[%clk 0:00:17.7]} 49. d7 {[%clk 0:00:04.3]} 49...
Qd2 {[%clk 0:00:16.4]} 50. d8=Q+ {[%clk 0:00:04.4]} 50... Qxd8 {[%clk
0:00:17.1]} 51. Qxd8+ {[%clk 0:00:05]} 51... Kg4 {[%clk 0:00:18]} 52. Qd7+
{[%clk 0:00:05]} 52... Kg3 {[%clk 0:00:18.1]} 53. Qd6+ {[%clk 0:00:05.4]} 53...
Kf2 {[%clk 0:00:17.5]} 54. Qxg6 {[%clk 0:00:05.8]} 54... h3 {[%clk 0:00:17]} 55.
Qf5+ {[%clk 0:00:06]} 1-0

[Event "*** Titled Tuesday Blitz"]
[Site "Chess.com"]
[Date "2020.05.05"]
[Round "9"]
[White "bazar-wokzal"]
[Black "2346PL"]
[Result "1-0"]
[WhiteElo "2528"]
[BlackElo "2365"]
[TimeControl "180+1"]
[EndTime "11:49:00 PDT"]
[Termination "bazar-wokzal won on time"]

1. e4 {[%clk 0:03:00.9]} 1... c5 {[%clk 0:02:58.7]} 2. c3 {[%clk 0:03:00.6]}
2... Nf6 {[%clk 0:02:58.9]} 3. e5 {[%clk 0:03:00.7]} 3... Nd5 {[%clk 0:02:59.6]}
4. Bc4 {[%clk 0:03:00.2]} 4... Nb6 {[%clk 0:02:59]} 5. Bb3 {[%clk 0:03:00.3]}
5... d5 {[%clk 0:02:59.6]} 6. exd6 {[%clk 0:02:59.8]} 6... Qxd6 {[%clk
0:02:59.5]} 7. d4 {[%clk 0:03:00.3]} 7... cxd4 {[%clk 0:02:58.6]} 8. Nf3 {[%clk
0:03:00.6]} 8... Nc6 {[%clk 0:02:57.3]} 9. Na3 {[%clk 0:02:57.7]} 9... a6 {[%clk
0:02:57.1]} 10. O-O {[%clk 0:02:54.3]} 10... e6 {[%clk 0:02:54.8]} 11. Nxd4
{[%clk 0:02:54.1]} 11... Nxd4 {[%clk 0:02:54.4]} 12. cxd4 {[%clk 0:02:54.2]}
12... Be7 {[%clk 0:02:53.8]} 13. Qf3 {[%clk 0:02:51]} 13... O-O {[%clk
0:02:52.1]} 14. Nc2 {[%clk 0:02:48.1]} 14... Nd5 {[%clk 0:02:49.4]} 15. Ne3
{[%clk 0:02:44]} 15... Nxe3 {[%clk 0:02:35.2]} 16. Bxe3 {[%clk 0:02:41.3]} 16...
Bd7 {[%clk 0:02:17.4]} 17. Qxb7 {[%clk 0:02:31.8]} 17... Bc6 {[%clk 0:02:17.5]}
18. Qb6 {[%clk 0:02:30.5]} 18... Rfb8 {[%clk 0:01:57.9]} 19. Qa5 {[%clk
0:02:16.1]} 19... Rb5 {[%clk 0:01:55.2]} 20. Qd2 {[%clk 0:02:11.4]} 20... Rh5
{[%clk 0:01:51]} 21. Bf4 {[%clk 0:02:05.3]} 21... Qd7 {[%clk 0:01:28.4]} 22.
Rac1 {[%clk 0:02:00.1]} 22... g5 {[%clk 0:01:20.8]} 23. Bg3 {[%clk 0:01:57.4]}
23... Bd6 {[%clk 0:01:06.9]} 24. Bd1 {[%clk 0:01:54.6]} 24... Rh6 {[%clk
0:01:04.8]} 25. Qxg5+ {[%clk 0:01:49.2]} 25... Rg6 {[%clk 0:01:05]} 26. Qe3
{[%clk 0:01:47.8]} 26... Bb5 {[%clk 0:00:54]} 27. Be2 {[%clk 0:01:37.8]} 27...
Bxe2 {[%clk 0:00:52.5]} 28. Qxe2 {[%clk 0:01:36.5]} 28... Bxg3 {[%clk
0:00:53.2]} 29. hxg3 {[%clk 0:01:35.7]} 29... Qxd4 {[%clk 0:00:53.7]} 30. Rfd1
{[%clk 0:01:32.3]} 30... Qb6 {[%clk 0:00:52]} 31. Rd7 {[%clk 0:01:30.8]} 31...
Rxg3 {[%clk 0:00:50]} 32. Rcc7 {[%clk 0:01:22.6]} 32... Rg7 {[%clk 0:00:49.3]}
33. Rxf7 {[%clk 0:01:15.4]} 33... Rxf7 {[%clk 0:00:45.5]} 34. Qg4+ {[%clk
0:01:09.9]} 34... Kf8 {[%clk 0:00:40.3]} 35. Rxf7+ {[%clk 0:01:09.6]} 35... Kxf7
{[%clk 0:00:40.2]} 36. Qf3+ {[%clk 0:01:10]} 36... Kg7 {[%clk 0:00:33.7]} 37.
Qxa8 {[%clk 0:01:08.1]} 37... Qxb2 {[%clk 0:00:33.5]} 38. Qa7+ {[%clk
0:00:57.4]} 38... Kf6 {[%clk 0:00:32.5]} 39. Qxh7 {[%clk 0:00:50]} 39... Qa1+
{[%clk 0:00:31.2]} 40. Kh2 {[%clk 0:00:48.8]} 40... Qxa2 {[%clk 0:00:31.7]} 41.
Qh8+ {[%clk 0:00:43.5]} 41... Ke7 {[%clk 0:00:31.1]} 42. Qg7+ {[%clk 0:00:43]}
42... Ke8 {[%clk 0:00:30.2]} 43. Qg6+ {[%clk 0:00:38.6]} 43... Ke7 {[%clk
0:00:30.3]} 44. Qg5+ {[%clk 0:00:38.3]} 44... Kd7 {[%clk 0:00:29]} 45. Qg7+
{[%clk 0:00:35.4]} 45... Kd6 {[%clk 0:00:28.4]} 46. Qd4+ {[%clk 0:00:34.1]}
46... Ke7 {[%clk 0:00:28.6]} 47. g4 {[%clk 0:00:33.1]} 47... a5 {[%clk
0:00:26.2]} 48. g5 {[%clk 0:00:32.6]} 48... Qd5 {[%clk 0:00:21.9]} 49. Qf6+
{[%clk 0:00:31.3]} 49... Kd6 {[%clk 0:00:21.5]} 50. g6 {[%clk 0:00:31.2]} 50...
Qh5+ {[%clk 0:00:17.3]} 51. Kg3 {[%clk 0:00:31]} 51... Qd5 {[%clk 0:00:08.4]}
52. g7 {[%clk 0:00:28.2]} 52... Qd3+ {[%clk 0:00:08.6]} 53. f3 {[%clk 0:00:26]}
53... Qf1 {[%clk 0:00:07.1]} 54. Qd8+ {[%clk 0:00:24.4]} 54... Ke5 {[%clk
0:00:07.2]} 55. g8=Q {[%clk 0:00:21.5]} 55... Qg1+ {[%clk 0:00:07.4]} 56. Kh4
{[%clk 0:00:20.6]} 56... Qh2+ {[%clk 0:00:07]} 57. Kg5 {[%clk 0:00:20.5]} 57...
Qg3+ {[%clk 0:00:04.3]} 58. Kh6 {[%clk 0:00:20.1]} 58... Qh3+ {[%clk 0:00:02.9]}
59. Kg7 {[%clk 0:00:19.7]} 59... Qg3+ {[%clk 0:00:02.1]} 60. Kf8 {[%clk
0:00:17.6]} 1-0

[Event "*** Titled Tuesday Blitz"]
[Site "Chess.com"]
[Date "2020.05.05"]
[Round "9"]
[White "Winehouse83"]
[Black "Jaka_Brilej"]
[Result "1/2-1/2"]
[WhiteElo "2507"]
[BlackElo "2378"]
[TimeControl "180+1"]
[EndTime "11:49:01 PDT"]
[Termination "Game drawn by stalemate"]

1. d4 {[%clk 0:03:00.9]} 1... f5 {[%clk 0:02:59.5]} 2. Nf3 {[%clk 0:02:59.5]}
2... Nf6 {[%clk 0:02:59.1]} 3. g3 {[%clk 0:02:57.1]} 3... g6 {[%clk 0:02:58.8]}
4. Bg2 {[%clk 0:02:57.4]} 4... Bg7 {[%clk 0:02:59]} 5. O-O {[%clk 0:02:58.1]}
5... O-O {[%clk 0:02:59.1]} 6. c4 {[%clk 0:02:58.6]} 6... d6 {[%clk 0:02:59.1]}
7. Nc3 {[%clk 0:02:58.1]} 7... c6 {[%clk 0:02:59.1]} 8. d5 {[%clk 0:02:47.6]}
8... e5 {[%clk 0:02:58.5]} 9. dxe6 {[%clk 0:02:45.2]} 9... Bxe6 {[%clk 0:02:59]}
10. b3 {[%clk 0:02:41.2]} 10... Qe7 {[%clk 0:02:52.1]} 11. Ba3 {[%clk
0:02:22.4]} 11... Rd8 {[%clk 0:02:51.4]} 12. Nd4 {[%clk 0:01:58.1]} 12... Bf7
{[%clk 0:02:48.5]} 13. Re1 {[%clk 0:01:53.6]} 13... Na6 {[%clk 0:02:47.6]} 14.
e4 {[%clk 0:01:53.2]} 14... fxe4 {[%clk 0:02:24.9]} 15. Nxe4 {[%clk 0:01:52.6]}
15... Nxe4 {[%clk 0:02:24.8]} 16. Bxe4 {[%clk 0:01:53.5]} 16... Qf6 {[%clk
0:02:20.3]} 17. Nc2 {[%clk 0:01:41]} 17... Nc5 {[%clk 0:02:17.4]} 18. Bg2 {[%clk
0:01:34.5]} 18... Re8 {[%clk 0:02:07.2]} 19. Rb1 {[%clk 0:01:25.3]} 19... Rad8
{[%clk 0:01:58.1]} 20. Bb2 {[%clk 0:01:21.8]} 20... Rxe1+ {[%clk 0:01:40.1]} 21.
Qxe1 {[%clk 0:01:20.4]} 21... Qe6 {[%clk 0:01:38.9]} 22. Bxg7 {[%clk 0:01:16.7]}
22... Qxe1+ {[%clk 0:01:34.4]} 23. Rxe1 {[%clk 0:01:14.4]} 23... Kxg7 {[%clk
0:01:35]} 24. Rd1 {[%clk 0:01:12.8]} 24... Na6 {[%clk 0:01:27]} 25. f4 {[%clk
0:01:05.2]} 25... Nc7 {[%clk 0:01:25.2]} 26. Ne3 {[%clk 0:01:00.2]} 26... Kf6
{[%clk 0:01:18.1]} 27. Kf2 {[%clk 0:00:56.6]} 27... Be6 {[%clk 0:01:07.8]} 28.
h3 {[%clk 0:00:44.5]} 28... Ke7 {[%clk 0:01:07.5]} 29. g4 {[%clk 0:00:44.3]}
29... Rf8 {[%clk 0:01:04.2]} 30. Kg3 {[%clk 0:00:43.8]} 30... Ne8 {[%clk
0:01:04.1]} 31. Be4 {[%clk 0:00:41.7]} 31... Nf6 {[%clk 0:01:02.5]} 32. Bc2
{[%clk 0:00:42.3]} 32... Ne8 {[%clk 0:00:58.7]} 33. f5 {[%clk 0:00:41.5]} 33...
gxf5 {[%clk 0:00:56.6]} 34. Bxf5 {[%clk 0:00:42.1]} 34... Ng7 {[%clk 0:00:53.9]}
35. Bxh7 {[%clk 0:00:41]} 35... Rh8 {[%clk 0:00:46.1]} 36. Bc2 {[%clk
0:00:39.9]} 36... Rg8 {[%clk 0:00:46]} 37. Kh2 {[%clk 0:00:38.3]} 37... Rf8
{[%clk 0:00:44.9]} 38. Rf1 {[%clk 0:00:38.3]} 38... Rd8 {[%clk 0:00:44.2]} 39.
Kg3 {[%clk 0:00:31.9]} 39... d5 {[%clk 0:00:44.6]} 40. cxd5 {[%clk 0:00:32.3]}
40... cxd5 {[%clk 0:00:45.5]} 41. Rd1 {[%clk 0:00:30.5]} 41... d4 {[%clk
0:00:45.1]} 42. Ng2 {[%clk 0:00:29.5]} 42... Rc8 {[%clk 0:00:44.1]} 43. Bd3
{[%clk 0:00:29.4]} 43... a5 {[%clk 0:00:32.3]} 44. Nf4 {[%clk 0:00:29]} 44...
Bg8 {[%clk 0:00:31]} 45. Be4 {[%clk 0:00:22.4]} 45... Rc3+ {[%clk 0:00:28.8]}
46. Kf2 {[%clk 0:00:20.8]} 46... a4 {[%clk 0:00:26.6]} 47. bxa4 {[%clk
0:00:17.4]} 47... Rc4 {[%clk 0:00:23.1]} 48. a5 {[%clk 0:00:14.7]} 48... Ra4
{[%clk 0:00:23]} 49. Bxb7 {[%clk 0:00:12.5]} 49... Rxa2+ {[%clk 0:00:23]} 50.
Kg3 {[%clk 0:00:12.8]} 50... Rxa5 {[%clk 0:00:21.8]} 51. Rxd4 {[%clk 0:00:12.4]}
51... Kf6 {[%clk 0:00:22]} 52. Rd8 {[%clk 0:00:08]} 52... Bf7 {[%clk 0:00:21.9]}
53. Bf3 {[%clk 0:00:07.4]} 53... Ra4 {[%clk 0:00:20.5]} 54. h4 {[%clk
0:00:07.5]} 54... Rxf4 {[%clk 0:00:20.5]} 55. Rd6+ {[%clk 0:00:06.5]} 55... Ke7
{[%clk 0:00:20.3]} 56. Kxf4 {[%clk 0:00:04.2]} 56... Kxd6 {[%clk 0:00:20.5]} 57.
Kg5 {[%clk 0:00:04.9]} 57... Ke7 {[%clk 0:00:20.4]} 58. Kh6 {[%clk 0:00:05.1]}
58... Ne6 {[%clk 0:00:20.6]} 59. h5 {[%clk 0:00:05]} 59... Kf8 {[%clk
0:00:20.7]} 60. Bd5 {[%clk 0:00:04.9]} 60... Nf4 {[%clk 0:00:20.3]} 61. Be4
{[%clk 0:00:05]} 61... Ne6 {[%clk 0:00:19.6]} 62. g5 {[%clk 0:00:04.7]} 62...
Nxg5 {[%clk 0:00:19.4]} 63. Kxg5 {[%clk 0:00:05.6]} 63... Kg8 {[%clk 0:00:20]}
64. h6 {[%clk 0:00:06.3]} 64... Kh8 {[%clk 0:00:20.4]} 65. Kf6 {[%clk
0:00:06.6]} 65... Be8 {[%clk 0:00:20.7]} 66. Bg6 {[%clk 0:00:06.4]} 66... Bxg6
{[%clk 0:00:20.8]} 67. Kxg6 {[%clk 0:00:07.3]} 67... Kg8 {[%clk 0:00:21.5]} 68.
h7+ {[%clk 0:00:08.2]} 68... Kh8 {[%clk 0:00:22]} 69. Kh6 {[%clk 0:00:09.1]}
1/2-1/2

[Event "*** Titled Tuesday Blitz"]
[Site "Chess.com"]
[Date "2020.05.05"]
[Round "9"]
[White "VincentKeymer"]
[Black "LiemLe"]
[Result "1/2-1/2"]
[WhiteElo "2726"]
[BlackElo "2956"]
[TimeControl "180+1"]
[EndTime "11:49:03 PDT"]
[Termination "Game drawn - insufficient material"]

1. Nf3 {[%clk 0:03:00.6]} 1... Nf6 {[%clk 0:02:58.8]} 2. c4 {[%clk 0:03:00.7]}
2... b6 {[%clk 0:02:56.5]} 3. d4 {[%clk 0:02:58]} 3... e6 {[%clk 0:02:55.7]} 4.
g3 {[%clk 0:02:54.4]} 4... Bb7 {[%clk 0:02:51.6]} 5. Bg2 {[%clk 0:02:54.3]} 5...
g6 {[%clk 0:02:52.3]} 6. O-O {[%clk 0:02:53.7]} 6... Bg7 {[%clk 0:02:52.8]} 7.
b3 {[%clk 0:02:46.7]} 7... O-O {[%clk 0:02:52.1]} 8. Bb2 {[%clk 0:02:47]} 8...
d6 {[%clk 0:02:49.4]} 9. Nc3 {[%clk 0:02:46.6]} 9... Nbd7 {[%clk 0:02:49.8]} 10.
Qd3 {[%clk 0:02:44]} 10... e5 {[%clk 0:02:47.7]} 11. e4 {[%clk 0:02:38.3]} 11...
exd4 {[%clk 0:02:30.4]} 12. Nxd4 {[%clk 0:02:37.9]} 12... Nc5 {[%clk 0:02:30.4]}
13. Qc2 {[%clk 0:02:38.2]} 13... Re8 {[%clk 0:02:30.7]} 14. Rfe1 {[%clk
0:02:37]} 14... a5 {[%clk 0:02:28.1]} 15. Rad1 {[%clk 0:02:32.1]} 15... h5
{[%clk 0:02:19.2]} 16. h3 {[%clk 0:02:27.4]} 16... Re7 {[%clk 0:02:07.9]} 17. a3
{[%clk 0:02:15.2]} 17... Qe8 {[%clk 0:02:07.3]} 18. f3 {[%clk 0:02:01.7]} 18...
d5 {[%clk 0:01:44.8]} 19. cxd5 {[%clk 0:01:48.5]} 19... Nxd5 {[%clk 0:01:44.9]}
20. Nxd5 {[%clk 0:01:29.8]} 20... Bxd5 {[%clk 0:01:44.8]} 21. b4 {[%clk
0:01:19.5]} 21... axb4 {[%clk 0:01:40.8]} 22. axb4 {[%clk 0:01:20.4]} 22... Na4
{[%clk 0:01:30.9]} 23. Ba1 {[%clk 0:01:18.9]} 23... Bb7 {[%clk 0:01:12.1]} 24.
Bf1 {[%clk 0:01:12.9]} 24... c5 {[%clk 0:01:09.3]} 25. bxc5 {[%clk 0:01:07.5]}
25... Nxc5 {[%clk 0:01:10.2]} 26. Nb5 {[%clk 0:00:59.1]} 26... Bxa1 {[%clk
0:00:52.5]} 27. Rxa1 {[%clk 0:01:00]} 27... Rxa1 {[%clk 0:00:50.5]} 28. Rxa1
{[%clk 0:01:00.9]} 28... Rd7 {[%clk 0:00:50.9]} 29. Rd1 {[%clk 0:00:55.9]} 29...
Ba6 {[%clk 0:00:38.2]} 30. Nc3 {[%clk 0:00:40.7]} 30... Rxd1 {[%clk 0:00:35.9]}
31. Qxd1 {[%clk 0:00:39.2]} 31... Qe5 {[%clk 0:00:32.4]} 32. Bxa6 {[%clk
0:00:20.9]} 32... Qxg3+ {[%clk 0:00:29.1]} 33. Kf1 {[%clk 0:00:20]} 33... Qxh3+
{[%clk 0:00:29]} 34. Ke2 {[%clk 0:00:20.1]} 34... Nxa6 {[%clk 0:00:26.8]} 35.
Qd8+ {[%clk 0:00:19.6]} 35... Kh7 {[%clk 0:00:23.3]} 36. Nd5 {[%clk 0:00:20.5]}
36... Qe6 {[%clk 0:00:18.1]} 37. Nf6+ {[%clk 0:00:18.2]} 37... Kg7 {[%clk
0:00:17.8]} 38. Ne8+ {[%clk 0:00:18.3]} 38... Kh6 {[%clk 0:00:18.2]} 39. Nf6
{[%clk 0:00:17.9]} 39... Nc5 {[%clk 0:00:15.9]} 40. Nd5 {[%clk 0:00:14.2]} 40...
Kg7 {[%clk 0:00:15.7]} 41. Qxb6 {[%clk 0:00:13.2]} 41... Qxb6 {[%clk 0:00:15.8]}
42. Nxb6 {[%clk 0:00:14.1]} 42... Kf6 {[%clk 0:00:15.9]} 43. Nd5+ {[%clk
0:00:14.2]} 43... Ke5 {[%clk 0:00:16.3]} 44. Ke3 {[%clk 0:00:14.6]} 44... g5
{[%clk 0:00:13.6]} 45. Nb4 {[%clk 0:00:14.2]} 45... h4 {[%clk 0:00:12.7]} 46.
Nc2 {[%clk 0:00:13.8]} 46... Ne6 {[%clk 0:00:12.3]} 47. Ne1 {[%clk 0:00:13.4]}
47... Nf4 {[%clk 0:00:11.8]} 48. Nc2 {[%clk 0:00:12.7]} 48... h3 {[%clk
0:00:06.6]} 49. Kf2 {[%clk 0:00:12.2]} 49... Nh5 {[%clk 0:00:06.7]} 50. Ne1
{[%clk 0:00:10.5]} 50... Kd4 {[%clk 0:00:04.5]} 51. Nc2+ {[%clk 0:00:10]} 51...
Kd3 {[%clk 0:00:05]} 52. Nb4+ {[%clk 0:00:10]} 52... Kd4 {[%clk 0:00:05.4]} 53.
Nc2+ {[%clk 0:00:09.9]} 53... Ke5 {[%clk 0:00:05.9]} 54. Ne1 {[%clk 0:00:09.4]}
54... f6 {[%clk 0:00:06]} 55. Nc2 {[%clk 0:00:08.5]} 55... Nf4 {[%clk
0:00:04.8]} 56. Kg3 {[%clk 0:00:06.8]} 56... f5 {[%clk 0:00:04.4]} 57. exf5
{[%clk 0:00:06.6]} 57... Kxf5 {[%clk 0:00:05.3]} 58. Ne3+ {[%clk 0:00:07]} 58...
Ke5 {[%clk 0:00:05.6]} 59. Ng4+ {[%clk 0:00:07.9]} 59... Kd4 {[%clk 0:00:05.9]}
60. Nf2 {[%clk 0:00:07.8]} 60... Ke3 {[%clk 0:00:06.3]} 61. Ne4 {[%clk
0:00:07.7]} 61... Ne6 {[%clk 0:00:05.8]} 62. Kxh3 {[%clk 0:00:05.8]} 62... Kxf3
{[%clk 0:00:06.2]} 63. Nxg5+ {[%clk 0:00:05.8]} 1/2-1/2

[Event "*** Titled Tuesday Blitz"]
[Site "Chess.com"]
[Date "2020.05.05"]
[Round "9"]
[White "Grineva_Marianna"]
[Black "WonderChampion"]
[Result "0-1"]
[WhiteElo "2135"]
[BlackElo "1861"]
[TimeControl "180+1"]
[EndTime "11:49:03 PDT"]
[Termination "WonderChampion won on time"]

1. d4 {[%clk 0:03:00.9]} 1... d5 {[%clk 0:02:58.7]} 2. c4 {[%clk 0:03:00.7]}
2... e6 {[%clk 0:02:57.8]} 3. Nc3 {[%clk 0:03:01.2]} 3... c6 {[%clk 0:02:56.9]}
4. e3 {[%clk 0:03:01.5]} 4... Nf6 {[%clk 0:02:54.3]} 5. Nf3 {[%clk 0:03:00.6]}
5... Bd6 {[%clk 0:02:52.3]} 6. c5 {[%clk 0:03:00.8]} 6... Bc7 {[%clk 0:02:51.9]}
7. b4 {[%clk 0:03:01.4]} 7... O-O {[%clk 0:02:51.1]} 8. Bd3 {[%clk 0:03:00.6]}
8... b6 {[%clk 0:02:50.7]} 9. O-O {[%clk 0:02:59.7]} 9... a5 {[%clk 0:02:49.8]}
10. b5 {[%clk 0:02:59.2]} 10... bxc5 {[%clk 0:02:46.4]} 11. dxc5 {[%clk
0:02:58.6]} 11... cxb5 {[%clk 0:02:44.6]} 12. Nxb5 {[%clk 0:02:56.2]} 12... Bd7
{[%clk 0:02:38.4]} 13. a4 {[%clk 0:02:55.2]} 13... Na6 {[%clk 0:02:36.2]} 14.
Ba3 {[%clk 0:02:53.9]} 14... e5 {[%clk 0:02:33.9]} 15. Nxc7 {[%clk 0:02:30.9]}
15... Qxc7 {[%clk 0:02:30.5]} 16. Bxa6 {[%clk 0:02:28]} 16... Rxa6 {[%clk
0:02:28.1]} 17. c6 {[%clk 0:02:28.2]} 17... Bxc6 {[%clk 0:02:23.7]} 18. Bxf8
{[%clk 0:02:27.7]} 18... Kxf8 {[%clk 0:02:24.2]} 19. Qe2 {[%clk 0:02:21.4]}
19... Ra8 {[%clk 0:02:22.8]} 20. Rfc1 {[%clk 0:02:21]} 20... Qd6 {[%clk
0:02:07.9]} 21. h3 {[%clk 0:02:04.4]} 21... Rc8 {[%clk 0:02:01.1]} 22. Qa6
{[%clk 0:02:00.8]} 22... Qc7 {[%clk 0:01:49]} 23. Nxe5 {[%clk 0:01:52.4]} 23...
Qxe5 {[%clk 0:01:47.4]} 24. Qxc8+ {[%clk 0:01:51.6]} 24... Be8 {[%clk
0:01:45.6]} 25. Qc5+ {[%clk 0:01:51.1]} 25... Kg8 {[%clk 0:01:45]} 26. Qxa5
{[%clk 0:01:50.6]} 26... Ne4 {[%clk 0:01:42.5]} 27. Ra2 {[%clk 0:01:46.6]} 27...
Qf5 {[%clk 0:01:41.8]} 28. Qd8 {[%clk 0:01:41.4]} 28... Qe6 {[%clk 0:01:36.7]}
29. Rc8 {[%clk 0:01:40.2]} 29... Nf6 {[%clk 0:01:35.1]} 30. Rb2 {[%clk
0:01:29.5]} 30... h6 {[%clk 0:01:34]} 31. a5 {[%clk 0:01:29]} 31... Kh7 {[%clk
0:01:33.8]} 32. a6 {[%clk 0:01:29.1]} 32... Qxa6 {[%clk 0:01:31.1]} 33. Qb6
{[%clk 0:01:15.1]} 33... Qxc8 {[%clk 0:01:29.4]} 34. g3 {[%clk 0:01:10.3]} 34...
Qxh3 {[%clk 0:01:26.7]} 35. Qb8 {[%clk 0:00:55.7]} 35... Bd7 {[%clk 0:01:14]}
36. Qe5 {[%clk 0:00:46.6]} 36... Bg4 {[%clk 0:01:07.8]} 37. f3 {[%clk
0:00:29.5]} 37... Bxf3 {[%clk 0:01:06.6]} 38. Rh2 {[%clk 0:00:30.1]} 38... Qg4
{[%clk 0:01:03]} 39. Rh4 {[%clk 0:00:22.5]} 39... Qg6 {[%clk 0:00:59.8]} 40. Rf4
{[%clk 0:00:16.3]} 40... Qxg3+ {[%clk 0:00:58.7]} 41. Kf1 {[%clk 0:00:16.3]}
41... Bg2+ {[%clk 0:00:57.6]} 42. Ke2 {[%clk 0:00:15.4]} 42... Ne4 {[%clk
0:00:56.3]} 43. Qf5+ {[%clk 0:00:13.9]} 43... Kh8 {[%clk 0:00:55.6]} 44. Qc8+
{[%clk 0:00:13.7]} 44... Kh7 {[%clk 0:00:52.7]} 45. Qf5+ {[%clk 0:00:12.4]}
45... Kh8 {[%clk 0:00:50.3]} 46. Qxf7 {[%clk 0:00:10.1]} 46... Nc3+ {[%clk
0:00:47]} 47. Kd3 {[%clk 0:00:09.3]} 47... Be4+ {[%clk 0:00:33.5]} 48. Kxc3
{[%clk 0:00:08.9]} 48... Qxe3+ {[%clk 0:00:34.1]} 49. Kb4 {[%clk 0:00:09.2]}
49... Qd4+ {[%clk 0:00:32.4]} 50. Ka5 {[%clk 0:00:08.7]} 50... Qc5+ {[%clk
0:00:31.8]} 51. Ka4 {[%clk 0:00:05.3]} 51... Qc6+ {[%clk 0:00:30.4]} 52. Kb4
{[%clk 0:00:04.7]} 52... Qb6+ {[%clk 0:00:29.8]} 53. Kc3 {[%clk 0:00:04.7]}
53... Qe3+ {[%clk 0:00:29.4]} 54. Kb4 {[%clk 0:00:04.5]} 54... Qd2+ {[%clk
0:00:29]} 55. Kc5 {[%clk 0:00:03.9]} 55... Qc3+ {[%clk 0:00:28.5]} 56. Kd6
{[%clk 0:00:04.4]} 56... Qb4+ {[%clk 0:00:27.7]} 57. Ke5 {[%clk 0:00:03.7]}
57... Qb8+ {[%clk 0:00:26.3]} 58. Kd4 {[%clk 0:00:02.7]} 58... Qb2+ {[%clk
0:00:26]} 59. Kc5 {[%clk 0:00:02.6]} 59... Qc3+ {[%clk 0:00:23.6]} 60. Kd6
{[%clk 0:00:03.2]} 60... Qa3+ {[%clk 0:00:21.8]} 61. Kd7 {[%clk 0:00:03.1]}
61... Qa7+ {[%clk 0:00:21.2]} 0-1